[Event "Catalonia Championship Veterans 2024"]
[Site "Salou Tarragona"]
[Date "2024.05.16"]
[Round "6.3"]
[White "Parals Marce, Luis"]
[Black "Noria Silvestre, Joaquin"]
[Result "1-0"]
[ECO "B07"]
[WhiteElo "2000"]
[BlackElo "2126"]
[Annotator "RC"]
[PlyCount "130"]
[EventDate "2024.05.11"]
[EventType "swiss"]
[EventCountry "ESP"]
[SourceTitle "playchess.com"]
[Source "ChessBase"]
[SourceQuality "1"]
[TimeControl "5400+30"]

1. e4 {[%emt 0:00:08]} d6 {[%emt 0:00:00]} 2. d4 {[%emt 0:00:18]} Nf6 {[%emt 0:01:42]} 3. Nc3 {[%emt 0:00:15]} g6 {[%emt 0:03:22]} 4. Bg5 {[%emt 0:02:02]} Bg7 {[%emt 0:01:39]} 5. e5 {[%emt 0:01:05]} Nfd7 {[%emt 0:07:33]} 6. f4 {[%emt 0:01:08]} f6 {[%emt 0:17:18]} 7. exf6 {[%emt 0:01:38]} exf6 {[%emt 0:02:03]} 8. Bh4 {[%emt 0:00:48]} Qe7+ {[%emt 0:06:51]} 9. Qe2 {[%emt 0:07:28]} c6 {[%emt 0:07:36]} 10. Qxe7+ {[%emt 0:05:30]} Kxe7 {[%emt 0:00:11]} 11. d5 {[%emt 0:00:17]} Kd8 {[%emt 0:07:55]} 12. O-O-O {[%emt 0:04:09]} Re8 {[%emt 0:13:19]} 13. dxc6 {[%emt 0:02:37]} bxc6 {[%emt 0:00:08]} 14. Rxd6 {[%emt 0:00:27]} Kc7 {[%emt 0:00:04]} 15. Rd1 {[%emt 0:01:39]} Nc5 {[%emt 0:01:00]} 16. Bf2 {[%emt 0:04:38]} Nba6 {[%emt 0:09:39]} 17. Bxa6 {[%emt 0:04:01]} Nxa6 {[%emt 0:00:16]} 18. Nf3 {[%emt 0:01:54]} Bg4 {[%emt 0:00:45]} 19. Rhe1 {[%emt 0:01:27]} Bxf3 {[%emt 0:05:16]} 20. gxf3 {[%emt 0:00:41]} Bh6 {[%emt 0:00:05]} 21. Bg3 {[%emt 0:00:23]} f5 {[%emt 0:00:07]} 22. Kb1 {[%emt 0:02:05]} Nc5 {[%emt 0:00:57]} 23. Ne2 {[%emt 0:31:37]} Ne6 {[%emt 0:06:33]} 24. Nd4 {[%emt 0:02:46]} Nxd4 {[%emt 0:00:14]} 25. Rxd4 {[%emt 0:00:23]} c5 {[%emt 0:05:10]} 26. Rdd1 {[%emt 0:00:52]} Rxe1 {[%emt 0:00:40]} 27. Rxe1 {[%emt 0:00:14]} Kd6 {[%emt 0:00:21]} 28. c3 {[%emt 0:00:15]} a6 {[%emt 0:01:40]} 29. Kc2 {[%emt 0:02:02]} c4 {[%emt 0:00:29]} 30. Rd1+ {[%emt 0:00:44]} Ke6 {[%emt 0:00:16]} 31. Rd4 {[%emt 0:00:33]} Rc8 {[%emt 0:00:06]} 32. Bh4 {[%emt 0:03:50]} Bf8 {[%emt 0:00:49]} 33. Rd2 {[%emt 0:06:24]} Bd6 {[%emt 0:00:06]} 34. Re2+ {[%emt 0:00:34]} Kd7 {[%emt 0:00:22]} 35. Bg5 {[%emt 0:00:52]} Re8 {[%emt 0:01:23]} 36. Rxe8 {[%emt 0:00:18]} Kxe8 {[%emt 0:00:06]} 37. Bh6 {[%emt 0:00:08]} Kd7 {[%emt 0:00:20]} 38. b3 {[%emt 0:00:12]} a5 {[%emt 0:01:46]} 39. bxc4 {[%emt 0:02:13]} Kc6 {[%emt 0:00:17]} 40. a4 {[%emt 0:00:19]} Bc7 {[%emt 0:01:03]} 41. Kd3 {[%emt 0:00:13]} Bd6 {[%emt 0:00:30]} 42. Kd4 {[%emt 0:01:16]} Bc5+ {[%emt 0:00:38]} 43. Kd3 {[%emt 0:00:42]} Bd6 {[%emt 0:00:07]} 44. h3 {[%emt 0:00:14]} Kc5 {[%emt 0:00:13]} 45. Bg5 {[%emt 0:00:35]} Kc6 {[%emt 0:00:39]} 46. Bd8 {[%emt 0:00:25]} Bxf4 {[%emt 0:00:12]} 47. Bxa5 {[%emt 0:00:06]} Bb8 {[%emt 0:00:56]} 48. Bd8 {[%emt 0:00:36]} Bd6 {[%emt 0:00:42]} 49. a5 {[%emt 0:01:41]} Bh2 {[%emt 0:00:20]} 50. a6 {[%emt 0:00:44]} Bg1 {[%emt 0:00:12]} 51. Bf6 {[%emt 0:00:31]} Bh2 {[%emt 0:00:28]} 52. Bd4 {[%emt 0:00:24]} h6 {[%emt 0:00:10]} 53. Be3 {[%emt 0:02:19]} g5 {[%emt 0:00:10]} 54. Ke2 {[%emt 0:00:29]} Bc7 {[%emt 0:00:45]} 55. Kf2 {[%emt 0:01:15]} Be5 {[%emt 0:00:39]} 56. Bd4 {[%emt 0:02:11]} Bc7 {[%emt 0:00:05]} 57. c5 {[%emt 0:02:24]} Bb8 {[%emt 0:00:04]} 58. c4 {[%emt 0:00:25]} h5 {[%emt 0:00:06]} 59. Kg2 {[%emt 0:00:20]} g4 {[%emt 0:01:00]} 60. fxg4 {[%emt 0:00:19]} fxg4 {[%emt 0:00:10]} 61. hxg4 {[%emt 0:00:06]} hxg4 {[%emt 0:00:07]} 62. Bf2 {[%emt 0:00:10]} Kd7 {[%emt 0:03:13]} 63. Kf1 {[%emt 0:00:10]} Kc6 {[%emt 0:00:07]} 64. Ke2 {[%emt 0:00:20]} Ba7 {[%emt 0:00:48]} 65. Bg1 {[%emt 0:00:30]} g3 {[%emt 0:01:12]} 1-0

[Event "Catalonia Championship Veterans 2024"]
[Site "Salou Tarragona"]
[Date "2024.05.16"]
[Round "6.4"]
[White "Torrecillas Martinez, Antonio"]
[Black "Lacasa Diaz, Josep Anton"]
[Result "1/2-1/2"]
[ECO "D33"]
[WhiteElo "2298"]
[BlackElo "2335"]
[Annotator "TA"]
[PlyCount "23"]
[EventDate "2024.05.11"]
[EventType "swiss"]
[EventCountry "ESP"]
[SourceTitle "playchess.com"]
[Source "ChessBase"]
[SourceQuality "1"]
[TimeControl "5400+30"]

{[%evp 11,23,8,17,0,0,0,0,0,7,0,10,0,0,0]} 1. d4 {[%emt 0:00:02]} d5 {[%emt 0:00:18]} 2. c4 {[%emt 0:00:18]} e6 {[%emt 0:00:07]} 3. Nc3 {[%emt 0:00:17]} c5 {[%emt 0:00:24]} 4. cxd5 {[%emt 0:00:18]} exd5 {[%emt 0:00:38]} 5. Nf3 {[%emt 0:00:20]} Nf6 {[%emt 0:00:20]} 6. g3 {[%emt 0:00:11]} Nc6 {[%emt 0:00:43] The position is equal.} 7. a3 {[%emt 0:00:40]} c4 {[%emt 0:09:33]} 8. Bg5 {[%emt 0:00:38]} Be7 {[%emt 0:10:34]} 9. Bg2 {[%emt 0:00:15]} Be6 {[%emt 0:00:15]} 10. O-O {[%emt 0:04:27]} O-O {[%emt 0:01:21]} 11. e3 {[%emt 0:03:49]} h6 {[%emt 0:03:18]} 12. Bxf6 {[%emt 0:00:24] Not much happened in this game.   Weighted Error Value: White=0.05 (flawless) /Black=0.01 (flawless) .  OK:         	White=4     	Black=4} 1/2-1/2

[Event "Catalonia Championship Veterans 2024"]
[Site "Salou Tarragona"]
[Date "2024.05.16"]
[Round "6.5"]
[White "Fernandez Muixi, Francesc"]
[Black "Tosan Pereira, Felipe"]
[Result "1-0"]
[ECO "B79"]
[WhiteElo "1988"]
[BlackElo "2062"]
[Annotator "RC"]
[PlyCount "85"]
[EventDate "2024.05.11"]
[EventType "swiss"]
[EventCountry "ESP"]
[SourceTitle "playchess.com"]
[Source "ChessBase"]
[SourceQuality "1"]
[TimeControl "5400+30"]

1. e4 {[%emt 0:00:02]} c5 {[%emt 0:00:06]} 2. Nf3 {[%emt 0:00:07]} g6 {[%emt 0:00:08]} 3. d4 {[%emt 0:00:05]} Bg7 {[%emt 0:00:42]} 4. Nc3 {[%emt 0:00:40]} cxd4 {[%emt 0:00:13]} 5. Nxd4 {[%emt 0:00:07]} Nc6 {[%emt 0:00:59]} 6. Be3 {[%emt 0:01:03]} Nf6 {[%emt 0:00:10]} 7. Bc4 {[%emt 0:00:10]} O-O {[%emt 0:00:16]} 8. Bb3 {[%emt 0:00:06]} Qa5 {[%emt 0:10:11]} 9. f3 {[%emt 0:00:51]} d6 {[%emt 0:00:38]} 10. Qd2 {[%emt 0:00:32]} Bd7 {[%emt 0:01:44]} 11. O-O-O {[%emt 0:04:25]} Ne5 {[%emt 0:00:34]} 12. Kb1 {[%emt 0:03:14]} Rfc8 {[%emt 0:00:14]} 13. g4 {[%emt 0:03:53]} Nc4 {[%emt 0:02:51]} 14. Bxc4 {[%emt 0:00:09]} Rxc4 {[%emt 0:00:06]} 15. g5 {[%emt 0:04:18]} Ne8 {[%emt 0:03:29]} 16. h4 {[%emt 0:02:55]} Rac8 {[%emt 0:01:07]} 17. h5 {[%emt 1:16:23]} Rxc3 {[%emt 0:11:51]} 18. bxc3 {[%emt 0:00:00]} Rc4 {[%emt 0:27:52]} 19. Nb3 {[%emt 0:00:00]} Qa3 {[%emt 0:04:08]} 20. Qc1 {[%emt 0:00:00]} Qa6 {[%emt 0:00:36]} 21. Bd4 {[%emt 0:00:00]} e5 {[%emt 0:00:51]} 22. Be3 {[%emt 0:00:00]} Nc7 {[%emt 0:00:55]} 23. Rd3 {[%emt 0:00:00]} Ra4 {[%emt 0:07:30]} 24. Qb2 {[%emt 0:00:00]} Bb5 {[%emt 0:02:49]} 25. Rd2 {[%emt 0:00:00]} Bc4 {[%emt 0:00:31]} 26. hxg6 {[%emt 0:00:00]} hxg6 {[%emt 0:00:23]} 27. Rdh2 {[%emt 0:00:00]} Nb5 {[%emt 0:00:45]} 28. Ka1 {[%emt 0:00:00]} Na3 {[%emt 0:03:41]} 29. f4 {[%emt 0:00:00]} Be6 {[%emt 0:00:51]} 30. Bc1 {[%emt 0:00:00]} Nc4 {[%emt 0:01:03]} 31. Qb1 {[%emt 0:00:00]} exf4 {[%emt 0:01:14]} 32. Bb2 {[%emt 0:00:00]} b5 {[%emt 0:01:51]} 33. Nd4 {[%emt 0:00:00]} Bd7 {[%emt 0:04:06]} 34. Bc1 {[%emt 0:00:00]} Be5 {[%emt 0:03:02]} 35. Bxf4 {[%emt 0:00:00]} Bg7 {[%emt 0:03:31]} 36. Bg3 {[%emt 0:02:15]} Ne3 {[%emt 0:02:13]} 37. Be1 {[%emt 0:00:36]} Bg4 {[%emt 0:03:30]} 38. Bd2 {[%emt 0:03:37]} Nc4 {[%emt 0:00:07]} 39. Be1 {[%emt 0:00:26]} b4 {[%emt 0:00:18]} 40. Bf2 {[%emt 0:01:51]} Nd2 {[%emt 0:00:39]} 41. Qb2 {[%emt 0:00:06]} Nxe4 {[%emt 0:00:08]} 42. cxb4 {[%emt 0:00:26]} Be6 {[%emt 0:00:25]} 43. Rh8+ {[%emt 0:03:43]} 1-0

[Event "Catalonia Championship Veterans 2024"]
[Site "Salou Tarragona"]
[Date "2024.05.16"]
[Round "6.6"]
[White "Brusi Noguera, Ricardo Ll."]
[Black "Jove Grau, Lluis"]
[Result "1-0"]
[ECO "D05"]
[WhiteElo "2059"]
[BlackElo "2049"]
[Annotator "RC"]
[PlyCount "55"]
[EventDate "2024.05.11"]
[EventType "swiss"]
[EventCountry "ESP"]
[SourceTitle "playchess.com"]
[Source "ChessBase"]
[SourceQuality "1"]
[TimeControl "5400+30"]

1. d4 {[%emt 0:00:07]} d5 {[%emt 0:00:07]} 2. Nf3 {[%emt 0:00:13]} e6 {[%emt 0:00:11]} 3. e3 {[%emt 0:00:24]} c5 {[%emt 0:00:15]} 4. b3 {[%emt 0:00:22]} Nf6 {[%emt 0:00:09]} 5. Bd3 {[%emt 0:00:48]} Nc6 {[%emt 0:00:11]} 6. Bb2 {[%emt 0:01:12]} Bd6 {[%emt 0:00:55]} 7. Nbd2 {[%emt 0:02:15]} O-O {[%emt 0:00:38]} 8. O-O {[%emt 0:00:18]} Qc7 {[%emt 0:01:18]} 9. a3 {[%emt 0:00:16]} e5 {[%emt 0:00:54]} 10. dxc5 {[%emt 0:01:37]} Bxc5 {[%emt 0:00:08]} 11. b4 {[%emt 0:01:41]} Bd6 {[%emt 0:01:22]} 12. e4 {[%emt 0:06:28]} dxe4 {[%emt 0:07:19]} 13. Nxe4 {[%emt 0:00:13]} Nxe4 {[%emt 0:00:12]} 14. Bxe4 {[%emt 0:00:05]} f5 {[%emt 0:01:26]} 15. Bd5+ {[%emt 0:04:28]} Kh8 {[%emt 0:00:04]} 16. Ng5 {[%emt 0:03:08]} h6 {[%emt 0:22:38]} 17. Nf7+ {[%emt 0:04:23]} Rxf7 {[%emt 0:03:23]} 18. Bxf7 {[%emt 0:00:08]} Qxf7 {[%emt 0:06:43]} 19. Qxd6 {[%emt 0:00:43]} Be6 {[%emt 0:00:12]} 20. Rad1 {[%emt 0:11:35]} e4 {[%emt 0:04:52]} 21. Qf4 {[%emt 0:07:01]} Kh7 {[%emt 0:00:42]} 22. f3 {[%emt 0:02:49]} Bc4 {[%emt 0:11:14]} 23. Rfe1 {[%emt 0:03:15]} g5 {[%emt 0:09:30]} 24. Qe3 {[%emt 0:04:03]} Re8 {[%emt 0:00:52]} 25. fxe4 {[%emt 0:00:57]} Rxe4 {[%emt 0:00:27]} 26. Qc3 {[%emt 0:01:21]} Rxe1+ {[%emt 0:10:39]} 27. Rxe1 {[%emt 0:01:20]} Ne7 {[%emt 0:01:26]} 28. Rxe7 {[%emt 0:22:15]} 1-0

[Event "Catalonia Championship Veterans 2024"]
[Site "Salou Tarragona"]
[Date "2024.05.16"]
[Round "6.7"]
[White "Pogorelov, Ruslan"]
[Black "Sanchez Bernardino, Miguel Angel"]
[Result "1-0"]
[ECO "A28"]
[WhiteElo "2282"]
[BlackElo "1954"]
[Annotator "RC"]
[PlyCount "103"]
[EventDate "2024.05.11"]
[EventType "swiss"]
[EventCountry "ESP"]
[SourceTitle "playchess.com"]
[Source "ChessBase"]
[SourceQuality "1"]
[TimeControl "5400+30"]

1. c4 {[%emt 0:00:04]} e5 {[%emt 0:00:20]} 2. Nc3 {[%emt 0:00:11]} Nf6 {[%emt 0:00:13]} 3. Nf3 {[%emt 0:00:16]} Nc6 {[%emt 0:00:43]} 4. e3 {[%emt 0:03:46]} d5 {[%emt 0:02:01]} 5. cxd5 {[%emt 0:00:10]} Nxd5 {[%emt 0:00:10]} 6. Bb5 {[%emt 0:00:12]} Nxc3 {[%emt 0:03:35]} 7. bxc3 {[%emt 0:00:18]} Bd7 {[%emt 0:02:29]} 8. d4 {[%emt 0:13:12]} e4 {[%emt 0:08:58]} 9. Bxc6 {[%emt 0:26:41]} bxc6 {[%emt 0:10:58]} 10. Ne5 {[%emt 0:01:10]} Bd6 {[%emt 0:07:40]} 11. Nxd7 {[%emt 0:01:38]} Qxd7 {[%emt 0:00:15]} 12. Qc2 {[%emt 0:01:34]} Qg4 {[%emt 0:07:32]} 13. O-O {[%emt 0:00:17]} O-O {[%emt 0:00:42]} 14. h3 {[%emt 0:03:49]} Qe6 {[%emt 0:05:13]} 15. Qa4 {[%emt 0:15:17]} Rfb8 {[%emt 0:03:27]} 16. Ba3 {[%emt 0:01:57]} Rb5 {[%emt 0:03:50]} 17. Bxd6 {[%emt 0:02:17]} cxd6 {[%emt 0:01:04]} 18. Rab1 {[%emt 0:03:28]} Qd7 {[%emt 0:19:07]} 19. c4 {[%emt 0:03:12]} Rg5 {[%emt 0:01:35]} 20. Kh2 {[%emt 0:01:26]} Qc7 {[%emt 0:01:32]} 21. d5 {[%emt 0:04:18]} cxd5 {[%emt 0:06:23]} 22. cxd5 {[%emt 0:00:15]} Re5 {[%emt 0:01:07]} 23. Rfc1 {[%emt 0:02:31]} Qd8 {[%emt 0:01:08]} 24. Qc6 {[%emt 0:00:29]} h6 {[%emt 0:00:31]} 25. Rb7 {[%emt 0:01:36]} Qf6 {[%emt 0:06:16]} 26. Rxf7 {[%emt 0:12:01]} Qxf7 {[%emt 0:01:09]} 27. Qxa8+ {[%emt 0:00:11]} Kh7 {[%emt 0:00:05]} 28. Rc2 {[%emt 0:00:39]} Rxd5 {[%emt 0:01:13]} 29. Qc8 {[%emt 0:00:49]} a5 {[%emt 0:01:01]} 30. a4 {[%emt 0:00:23]} Qe7 {[%emt 0:00:50]} 31. Qg4 {[%emt 0:00:19]} Qe5+ {[%emt 0:00:48]} 32. Qg3 {[%emt 0:00:26]} Qe7 {[%emt 0:02:50]} 33. Qf4 {[%emt 0:00:37]} g5 {[%emt 0:00:25]} 34. Qg4 {[%emt 0:00:24]} Qe5+ {[%emt 0:00:23]} 35. g3 {[%emt 0:00:25]} Rc5 {[%emt 0:00:33]} 36. Rd2 {[%emt 0:00:35]} Rd5 {[%emt 0:00:34]} 37. Qd7+ {[%emt 0:00:34]} Kg6 {[%emt 0:00:18]} 38. Rxd5 {[%emt 0:00:53]} Qxd5 {[%emt 0:00:08]} 39. Qe8+ {[%emt 0:00:09]} Kg7 {[%emt 0:00:08]} 40. Qb5 {[%emt 0:01:21]} Qd2 {[%emt 0:00:49]} 41. Kg2 {[%emt 0:00:20]} Qb4 {[%emt 0:00:10]} 42. g4 {[%emt 0:00:36]} Kf6 {[%emt 0:01:17]} 43. Qxb4 {[%emt 0:00:39]} axb4 {[%emt 0:00:10]} 44. a5 {[%emt 0:00:05]} b3 {[%emt 0:00:04]} 45. a6 {[%emt 0:00:07]} b2 {[%emt 0:00:07]} 46. a7 {[%emt 0:00:06]} b1=Q {[%emt 0:00:11]} 47. a8=Q {[%emt 0:00:05]} Qd3 {[%emt 0:00:41]} 48. Qf8+ {[%emt 0:00:48]} Kg6 {[%emt 0:00:29]} 49. Qg8+ {[%emt 0:00:11]} Kf6 {[%emt 0:00:14]} 50. Qh7 {[%emt 0:00:22]} Qd5 {[%emt 0:01:37]} 51. Qxh6+ {[%emt 0:00:24]} Kf7 {[%emt 0:00:49]} 52. Qh5+ {[%emt 0:00:33]} 1-0

[Event "Catalonia Championship Veterans 2024"]
[Site "Salou Tarragona"]
[Date "2024.05.16"]
[Round "6.8"]
[White "Palacin Martin, Ricardo"]
[Black "Vallbona Domingo, Joan"]
[Result "1/2-1/2"]
[ECO "E14"]
[WhiteElo "1968"]
[BlackElo "1938"]
[Annotator "RC"]
[PlyCount "78"]
[EventDate "2024.05.11"]
[EventType "swiss"]
[EventCountry "ESP"]
[SourceTitle "playchess.com"]
[Source "ChessBase"]
[SourceQuality "1"]
[TimeControl "5400+30"]

1. d4 {[%emt 0:00:47]} d5 {[%emt 0:01:09]} 2. c4 {[%emt 0:00:40]} e6 {[%emt 0:00:08]} 3. Nc3 {[%emt 0:00:20]} Nf6 {[%emt 0:00:06]} 4. e3 {[%emt 0:01:46]} Be7 {[%emt 0:00:43]} 5. Nf3 {[%emt 0:03:25]} b6 {[%emt 0:01:48]} 6. Bd3 {[%emt 0:01:16]} Bb7 {[%emt 0:01:40]} 7. O-O {[%emt 0:00:24]} Nbd7 {[%emt 0:00:31]} 8. Qe2 {[%emt 0:03:05]} O-O {[%emt 0:01:28]} 9. b3 {[%emt 0:04:41]} Re8 {[%emt 0:01:24]} 10. Bb2 {[%emt 0:01:13]} Bd6 {[%emt 0:01:46]} 11. e4 {[%emt 0:03:28]} dxe4 {[%emt 0:01:07]} 12. Nxe4 {[%emt 0:00:12]} Nxe4 {[%emt 0:02:25]} 13. Bxe4 {[%emt 0:00:07]} Bxe4 {[%emt 0:00:42]} 14. Qxe4 {[%emt 0:00:08]} Qf6 {[%emt 0:01:09]} 15. Rfe1 {[%emt 0:02:15]} Qf5 {[%emt 0:02:41]} 16. Qxf5 {[%emt 0:11:39]} exf5 {[%emt 0:00:08]} 17. d5 {[%emt 0:01:16]} a5 {[%emt 0:05:18]} 18. Kf1 {[%emt 0:03:48]} Kf8 {[%emt 0:04:24]} 19. h3 {[%emt 0:01:24]} Rxe1+ {[%emt 1:11:23]} 20. Rxe1 {[%emt 0:58:36]} a4 {[%emt 0:00:00]} 21. Be5 {[%emt 0:00:00]} Nxe5 {[%emt 0:00:00]} 22. Nxe5 {[%emt 0:00:00]} g6 {[%emt 0:00:00]} 23. Nd3 {[%emt 0:00:00]} axb3 {[%emt 0:00:00]} 24. axb3 {[%emt 0:00:00]} Ra2 {[%emt 0:00:00]} 25. Rd1 {[%emt 0:00:00]} Ke7 {[%emt 0:00:00]} 26. Ke1 {[%emt 0:00:00]} Kd7 {[%emt 0:00:00]} 27. Rd2 {[%emt 0:00:00]} Ra1+ {[%emt 0:00:00]} 28. Ke2 {[%emt 0:00:00]} Bf8 {[%emt 0:00:00]} 29. Ne5+ {[%emt 0:00:00]} Ke7 {[%emt 0:00:00]} 30. f4 {[%emt 0:00:00]} Ke8 {[%emt 0:00:00]} 31. Kf3 {[%emt 0:00:00]} Rb1 {[%emt 0:00:00]} 32. Rd3 {[%emt 0:00:00]} Bc5 {[%emt 0:00:00]} 33. g4 {[%emt 0:00:00]} f6 {[%emt 0:00:00]} 34. Nc6 {[%emt 0:00:00]} fxg4+ {[%emt 0:00:00]} 35. hxg4 {[%emt 0:00:00]} Rf1+ {[%emt 0:00:00]} 36. Kg3 {[%emt 0:00:00]} Rg1+ {[%emt 0:00:00]} 37. Kh3 {[%emt 0:00:00]} Rh1+ {[%emt 0:00:00]} 38. Kg2 {[%emt 0:00:00]} Rg1+ {[%emt 0:00:00]} 39. Kh3 {[%emt 0:00:00]} Rh1+ {[%emt 0:00:00]} 1/2-1/2

[Event "Catalonia Championship Veterans 2024"]
[Site "Salou Tarragona"]
[Date "2024.05.16"]
[Round "6.9"]
[White "Melero Sanchez, Pere"]
[Black "Saldana Caballe, Enric"]
[Result "0-1"]
[ECO "D30"]
[WhiteElo "1934"]
[BlackElo "1967"]
[Annotator "RC"]
[PlyCount "66"]
[EventDate "2024.05.11"]
[EventType "swiss"]
[EventCountry "ESP"]
[SourceTitle "playchess.com"]
[Source "ChessBase"]
[SourceQuality "1"]
[TimeControl "5400+30"]

1. d4 {[%emt 0:00:02]} d5 {[%emt 0:00:09]} 2. c4 {[%emt 0:00:03]} e6 {[%emt 0:00:07]} 3. cxd5 {[%emt 0:00:20]} exd5 {[%emt 0:00:12]} 4. Nc3 {[%emt 0:00:06]} h6 {[%emt 0:00:10]} 5. Bf4 {[%emt 0:00:37]} Bd6 {[%emt 0:00:13]} 6. Bxd6 {[%emt 0:06:46]} Qxd6 {[%emt 0:00:07]} 7. e3 {[%emt 0:00:47]} Bf5 {[%emt 0:01:52]} 8. Nf3 {[%emt 0:00:41]} Nf6 {[%emt 0:00:16]} 9. Bd3 {[%emt 0:06:32]} Bxd3 {[%emt 0:00:19]} 10. Qxd3 {[%emt 0:00:05]} O-O {[%emt 0:00:06]} 11. O-O {[%emt 0:01:01]} Nbd7 {[%emt 0:03:16]} 12. Rac1 {[%emt 0:09:59]} c6 {[%emt 0:00:07]} 13. a3 {[%emt 0:03:07]} Qe7 {[%emt 0:10:55]} 14. b4 {[%emt 0:04:07]} a6 {[%emt 0:00:56]} 15. Na4 {[%emt 0:03:17]} Ne4 {[%emt 0:04:08]} 16. Nc5 {[%emt 0:03:14]} Nd6 {[%emt 0:06:09]} 17. a4 {[%emt 0:06:28]} Nb6 {[%emt 0:02:53]} 18. Ne5 {[%emt 0:03:10]} Nbc4 {[%emt 0:03:07]} 19. f4 {[%emt 0:03:24]} f6 {[%emt 0:07:35]} 20. Nxc4 {[%emt 0:05:59]} dxc4 {[%emt 0:00:03]} 21. Rxc4 {[%emt 0:03:44]} b6 {[%emt 0:03:59]} 22. Nb3 {[%emt 0:03:59]} Nxc4 {[%emt 0:01:08]} 23. Qxc4+ {[%emt 0:00:01]} Qf7 {[%emt 0:00:27]} 24. Qc3 {[%emt 0:01:53]} Qd5 {[%emt 0:10:25]} 25. a5 {[%emt 0:02:27]} Rab8 {[%emt 0:07:40]} 26. Ra1 {[%emt 0:05:38]} Qb5 {[%emt 0:04:19]} 27. axb6 {[%emt 0:04:31]} Rxb6 {[%emt 0:01:04]} 28. Nc5 {[%emt 0:01:23]} Re8 {[%emt 0:05:09]} 29. Qb3+ {[%emt 0:01:47]} Kh8 {[%emt 0:00:44]} 30. Qf7 {[%emt 0:04:57]} Reb8 {[%emt 0:08:07]} 31. f5 {[%emt 0:02:15]} Qe2 {[%emt 0:04:31]} 32. Qe6 {[%emt 0:03:39]} Rxb4 {[%emt 0:02:49]} 33. Nd7 {[%emt 0:01:43]} Rb1+ {[%emt 0:13:58]} 0-1

[Event "Catalonia Championship Veterans 2024"]
[Site "Salou Tarragona"]
[Date "2024.05.16"]
[Round "6.10"]
[White "Mas Recorda, Pere"]
[Black "Cuadras Avellana, Jordi"]
[Result "0-1"]
[ECO "A88"]
[WhiteElo "1932"]
[BlackElo "2176"]
[Annotator "RC"]
[PlyCount "74"]
[EventDate "2024.05.11"]
[EventType "swiss"]
[EventCountry "ESP"]
[SourceTitle "playchess.com"]
[Source "ChessBase"]
[SourceQuality "1"]
[TimeControl "5400+30"]

1. d4 {[%emt 0:00:06]} d6 {[%emt 0:00:00]} 2. Nf3 {[%emt 0:00:34]} f5 {[%emt 0:00:00]} 3. c4 {[%emt 0:00:54]} Nf6 {[%emt 0:00:04]} 4. Nc3 {[%emt 0:00:21]} g6 {[%emt 0:00:14]} 5. g3 {[%emt 0:01:49]} Bg7 {[%emt 0:00:08]} 6. Bg2 {[%emt 0:00:13]} O-O {[%emt 0:00:08]} 7. O-O {[%emt 0:00:16]} c6 {[%emt 0:00:15]} 8. Qc2 {[%emt 0:03:04]} Qe8 {[%emt 0:04:08]} 9. Bf4 {[%emt 0:04:56]} Nbd7 {[%emt 0:09:18]} 10. d5 {[%emt 0:10:54]} Nc5 {[%emt 0:02:43]} 11. Rad1 {[%emt 0:01:55]} Bd7 {[%emt 0:04:44]} 12. Be3 {[%emt 0:08:34]} cxd5 {[%emt 0:23:44]} 13. Bxc5 {[%emt 0:06:34]} dxc5 {[%emt 0:00:07]} 14. Nxd5 {[%emt 0:01:14]} Nxd5 {[%emt 0:01:04]} 15. cxd5 {[%emt 0:02:52]} Rc8 {[%emt 0:03:28]} 16. Rd2 {[%emt 0:00:30]} b5 {[%emt 0:09:22]} 17. e3 {[%emt 0:00:28]} Qd8 {[%emt 0:01:11]} 18. b3 {[%emt 0:01:18]} Qb6 {[%emt 0:02:12]} 19. Rfd1 {[%emt 0:01:18]} c4 {[%emt 0:00:49]} 20. Nd4 {[%emt 0:01:04]} c3 {[%emt 0:03:28]} 21. Re2 {[%emt 0:05:31]} Bxd4 {[%emt 0:01:00]} 22. Rxd4 {[%emt 0:00:05]} b4 {[%emt 0:00:39]} 23. Re1 {[%emt 0:00:22]} a5 {[%emt 0:00:42]} 24. Bf1 {[%emt 0:00:26]} Bb5 {[%emt 0:03:32]} 25. Bxb5 {[%emt 0:03:19]} Qxb5 {[%emt 0:00:04]} 26. e4 {[%emt 0:01:00]} f4 {[%emt 0:00:44]} 27. e5 {[%emt 0:02:57]} fxg3 {[%emt 0:00:40]} 28. hxg3 {[%emt 0:00:13]} Qb6 {[%emt 0:02:20]} 29. Rg4 {[%emt 0:01:03]} Kg7 {[%emt 0:01:56]} 30. Re2 {[%emt 0:00:36]} Rf3 {[%emt 0:04:04]} 31. Rf4 {[%emt 0:01:36]} Rxf4 {[%emt 0:01:28]} 32. gxf4 {[%emt 0:00:02]} Qd4 {[%emt 0:01:26]} 33. d6 {[%emt 0:01:03]} Qxf4 {[%emt 0:04:20]} 34. d7 {[%emt 0:00:50]} Qg4+ {[%emt 0:00:19]} 35. Kf1 {[%emt 0:00:59]} Qxd7 {[%emt 0:00:17]} 36. e6 {[%emt 0:00:13]} Qd5 {[%emt 0:00:37]} 37. Qc1 {[%emt 0:00:31]} Qh1# {[%emt 0:00:14]} 0-1